fUST/lending_fUST_20251018
["ID","MTS","AMOUNT","RATE_DAILY","PERIOD"]
[391672998,1760724653402,-805.93,0.00031232,5]
[391672999,1760724653413,-1000.0,0.00031232,2]
[391673000,1760724653423,-500.0,0.00031232,5]
[391673001,1760724653433,-500.0,0.00031232,5]
[391673002,1760724653442,-500.0,0.00031232,5]
[391673003,1760724653452,-656.71,0.00031232,3]
[391673004,1760724653462,-529.54,0.00031232,5]
[391673005,1760724653471,-500.0,0.00031232,5]
[391673006,1760724653481,-678.35,0.00031232,5]
[391673007,1760724653491,-500.0,0.00031232,5]
[391673008,1760724653500,-545.0,0.00031232,5]
[391673009,1760724653510,-2386.99,0.00031232,5]
[391673010,1760724653520,-500.0,0.00031232,5]
[391673011,1760724653532,-500.0,0.00031232,5]
[391673012,1760724653546,-500.0,0.00031232,5]
[391673013,1760724653556,-500.0,0.00031232,5]
[391673014,1760724653566,-500.0,0.00031232,5]
[391673015,1760724653575,-5093.68,0.00031232,5]
[391673016,1760724653586,-647.06,0.00031232,5]
[391673017,1760724653595,-500.0,0.00031232,5]
[391673018,1760724653605,-500.0,0.00031232,5]
[391673019,1760724653615,-266.512698,0.00031232,30]
[391673020,1760724653625,-500.0,0.00031232,5]
[391673021,1760724653635,-266.512698,0.00031232,30]
[391673022,1760724653645,-266.512698,0.00031232,30]
[391673023,1760724653654,-266.51269,0.00031232,30]
[391673024,1760724653667,-500.0,0.00031232,5]
[391673025,1760724653676,-500.0,0.00031232,5]
[391673026,1760724653686,-500.0,0.00031232,5]
[391673027,1760724653695,-415.38136422,0.00031232,5]
[391673028,1760724653705,-500.0,0.00031232,5]
[391673029,1760724653715,-500.0,0.00031232,5]
[391673030,1760724653726,-500.0,0.00031232,5]
[391673031,1760724653736,-9395.89,0.00031232,5]
[391673032,1760724653745,-500.0,0.00031232,5]
[391673033,1760724653755,-164.033396,0.00031232,30]
[391673034,1760724653765,-164.033396,0.00031232,30]
[391673035,1760724653775,-164.033396,0.00031232,30]
[391673036,1760724653785,-164.033395,0.00031232,30]
[391673037,1760724653795,-500.0,0.00031232,2]
[391673039,1760724653804,-500.0,0.00031232,5]
[391673040,1760724653813,-500.0,0.00031232,5]
[391673041,1760724653823,-500.0,0.00031232,5]
[391673042,1760724653832,-636.40093319,0.00031232,5]
[391673044,1760724653842,-500.0,0.00031232,5]
[391673045,1760724653852,-500.0,0.00031232,5]
[391673046,1760724653861,-500.0,0.00031232,5]
[391673047,1760724653871,-500.0,0.00031232,5]
[391673048,1760724653881,-318.49,0.00031233,20]
[391673049,1760724653891,-660.0,0.0003126,2]
[391673050,1760724653901,-154.33034444,0.0003126,30]
[391673051,1760724653913,-166.0,0.00031385,2]
[391673052,1760724653925,-225.18697532,0.00031385,2]
[391673053,1760724653934,-4250.81,0.00031401,10]
[391673054,1760724653944,-3000.0,0.00031412,5]
[391673055,1760724653955,-9000.0,0.00031424,6]
[391673056,1760724653965,-252.45740863,0.00031433,2]
[391673057,1760724653975,-154.33034444,0.00031452,30]
[391673058,1760724653986,-2426.51,0.000315,2]
[391673059,1760724653997,-500.0,0.00031506,5]
[391673060,1760724654007,-500.0,0.00031506,5]
[391673061,1760724654017,-1000.0,0.00031506,2]
[391673062,1760724654027,-500.0,0.00031506,5]
[391673063,1760724654037,-1383.67,0.00031506,5]
[391673064,1760724654047,-618.47380045,0.00031506,5]
[391673065,1760724654056,-500.0,0.00031506,5]
[391673066,1760724654066,-622.67,0.00031506,5]
[391673067,1760724654076,-1116.32,0.00031506,5]
[391673068,1760724654086,-500.0,0.00031506,5]
[391673069,1760724654096,-500.0,0.00031506,5]
[391673070,1760724654106,-500.0,0.00031506,5]
[391673071,1760724654116,-4876.64,0.00031506,5]
[391673072,1760724654127,-500.0,0.00031506,5]
[391673073,1760724654137,-500.0,0.00031506,5]
[391673074,1760724654147,-2483.49,0.00031506,5]
[391673075,1760724654156,-500.0,0.00031506,5]
[391673076,1760724654167,-606.34,0.00031506,5]
[391673077,1760724654177,-500.0,0.00031506,5]
[391673078,1760724654187,-500.0,0.00031506,5]
[391673079,1760724654197,-500.0,0.00031506,5]
[391673080,1760724654208,-624.44,0.00031506,5]
[391673081,1760724654217,-500.0,0.00031506,5]
[391673082,1760724654226,-500.0,0.00031506,5]
[391673083,1760724654235,-500.0,0.00031506,5]
[391673084,1760724654245,-300.76700342,0.00031506,5]
[391673085,1760724654254,-1826.15,0.00031506,2]
[391673086,1760724654263,-500.0,0.00031506,5]
[391673087,1760724654272,-500.0,0.00031506,5]
[391673089,1760724654282,-785.68,0.00031506,5]
[391673090,1760724654291,-500.0,0.00031506,5]
[391673091,1760724654301,-500.0,0.00031506,5]
[391673092,1760724654310,-500.0,0.00031506,5]
[391673093,1760724654320,-500.0,0.00031506,5]
[391673094,1760724654330,-500.0,0.00031506,5]
[391673095,1760724654339,-895.98,0.00031506,5]
[391673096,1760724654349,-4958.33,0.00031506,5]
[391673097,1760724654358,-500.0,0.00031506,5]
[391673098,1760724654374,-500.0,0.00031506,2]
[391673099,1760724654392,-500.0,0.00031506,5]
[391673100,1760724654401,-500.0,0.00031506,5]
[391673101,1760724654410,-5210.72,0.00031506,5]
[391673102,1760724654419,-500.0,0.00031506,5]
[391673103,1760724654429,-518.86,0.00031506,5]
[391673104,1760724654438,-805.93,0.00031506,5]
[391673105,1760724654448,-1000.0,0.00031506,2]
[391673106,1760724654457,-500.0,0.00031506,5]
[391673107,1760724654466,-500.0,0.00031506,5]
[391673108,1760724654476,-500.0,0.00031506,5]
[391673109,1760724654589,-656.71,0.00031506,3]
[391673110,1760724654600,-529.54,0.00031506,5]
[391673111,1760724654610,-500.0,0.00031506,5]
[391673112,1760724654620,-678.35,0.00031506,5]
[391673113,1760724654629,-500.0,0.00031506,5]
[391673114,1760724654639,-545.0,0.00031506,5]
[391673115,1760724654649,-2386.99,0.00031506,5]
[391673116,1760724654658,-500.0,0.00031506,5]
[391673117,1760724654670,-500.0,0.00031506,5]
[391673118,1760724654680,-500.0,0.00031506,5]
[391673119,1760724654689,-500.0,0.00031506,5]
[391673120,1760724654699,-500.0,0.00031506,5]
[391673121,1760724654708,-5093.68,0.00031506,5]
[391673122,1760724654718,-647.06,0.00031506,5]
[391673123,1760724654727,-500.0,0.00031506,5]
[391673124,1760724654736,-500.0,0.00031506,5]
[391673125,1760724654746,-500.0,0.00031506,5]
[391673126,1760724654755,-500.0,0.00031506,5]
[391673127,1760724654765,-500.0,0.00031506,5]
[391673128,1760724654774,-500.0,0.00031506,5]
[391673129,1760724654783,-500.0,0.00031506,5]
[391673130,1760724654793,-500.0,0.00031506,5]
[391673131,1760724654802,-500.0,0.00031506,5]
[391673132,1760724654813,-9395.89,0.00031506,5]
[391673133,1760724654823,-500.0,0.00031506,5]
[391673134,1760724654832,-500.0,0.00031506,2]
[391673135,1760724654842,-500.0,0.00031506,5]
[391673136,1760724654851,-500.0,0.00031506,5]
[391673137,1760724654861,-500.0,0.00031506,5]
[391673138,1760724654870,-500.0,0.00031506,5]
[391673139,1760724654880,-500.0,0.00031506,5]
[391673140,1760724654889,-500.0,0.00031506,5]
[391673141,1760724654899,-527.29693386,0.00031506,5]
[391673142,1760724654908,-318.49,0.00031507,21]
[391673143,1760724654924,-4000.0,0.00031508,5]
[391673144,1760724654933,-271.956981,0.00031558,4]
[391673145,1760724654943,-155.530121,0.00031558,4]
[391673146,1760724654952,-350.0,0.00031568,5]
[391673147,1760724654962,-350.0,0.00031568,5]
[391673148,1760724654972,-154.33034444,0.00031616,30]
[391673149,1760724654982,-10000.0,0.0003167,6]
[391673150,1760724654994,-2866.16798021,0.0003168,2]
[391673151,1760724655003,-500.0,0.0003178,5]
[391673152,1760724655012,-500.0,0.0003178,5]
[391673153,1760724655022,-1000.0,0.0003178,2]
[391673154,1760724655031,-500.0,0.0003178,5]
[391673155,1760724655040,-1383.67,0.0003178,5]
[391673156,1760724655050,-169.94,0.0003178,5]
[391673157,1760724655060,-622.67,0.0003178,5]
[391673158,1760724655069,-1116.32,0.0003178,5]
[391673159,1760724655079,-500.0,0.0003178,5]
[391673160,1760724655088,-500.0,0.0003178,5]
[391673161,1760724655097,-500.0,0.0003178,5]
[391673162,1760724655107,-4876.64,0.0003178,5]
[391673163,1760724655116,-500.0,0.0003178,5]
[391673164,1760724655126,-500.0,0.0003178,5]
[391673165,1760724655136,-2483.49,0.0003178,5]
[391673166,1760724655146,-575.75787932,0.0003178,5]
[391673167,1760724655155,-606.34,0.0003178,5]
[391673168,1760724655166,-500.0,0.0003178,5]
[391673169,1760724655176,-500.0,0.0003178,5]
[391673170,1760724655186,-500.0,0.0003178,5]
[391673171,1760724655196,-624.44,0.0003178,5]
[391673172,1760724655205,-500.0,0.0003178,5]
[391673173,1760724655214,-500.0,0.0003178,5]
[391673174,1760724655224,-500.0,0.0003178,5]
[391673175,1760724655234,-1826.15,0.0003178,2]
[391673176,1760724655243,-500.0,0.0003178,5]
[391673177,1760724655254,-500.0,0.0003178,5]
[391673178,1760724655263,-785.68,0.0003178,5]
[391673179,1760724655274,-402.8237446,0.0003178,5]
[391673180,1760724655289,-500.0,0.0003178,5]
[391673181,1760724655299,-500.0,0.0003178,5]
[391673182,1760724655308,-500.0,0.0003178,5]
[391673183,1760724655318,-500.0,0.0003178,5]
[391673184,1760724655327,-895.98,0.0003178,5]
[391673185,1760724655336,-4958.33,0.0003178,5]
[391673186,1760724655346,-500.0,0.0003178,5]
[391673187,1760724655355,-500.0,0.0003178,2]
[391673188,1760724655365,-500.0,0.0003178,5]
[391673189,1760724655374,-500.0,0.0003178,5]
[391673190,1760724655383,-5210.72,0.0003178,5]
[391673191,1760724655392,-500.0,0.0003178,5]
[391673192,1760724655402,-518.86,0.0003178,5]
[391673193,1760724655412,-805.93,0.0003178,5]
[391673194,1760724655422,-1000.0,0.0003178,2]
[391673195,1760724655432,-500.0,0.0003178,5]
[391673196,1760724655441,-500.0,0.0003178,5]
[391673197,1760724655451,-500.0,0.0003178,5]
[391673198,1760724655463,-656.71,0.0003178,3]
[391673199,1760724655480,-529.54,0.0003178,5]
[391673200,1760724655490,-500.0,0.0003178,5]
[391673201,1760724655500,-678.35,0.0003178,5]
[391673202,1760724655510,-500.0,0.0003178,5]
[391673203,1760724655519,-545.0,0.0003178,5]
[391673204,1760724655528,-2386.99,0.0003178,5]
[391673205,1760724655538,-500.0,0.0003178,5]
[391673206,1760724655548,-500.0,0.0003178,5]
[391673207,1760724655558,-500.0,0.0003178,5]
[391673208,1760724655569,-500.0,0.0003178,5]
[391673209,1760724655578,-500.0,0.0003178,5]
[391673210,1760724655588,-5093.68,0.0003178,5]
[391673211,1760724655598,-647.06,0.0003178,5]
[391673212,1760724655607,-500.0,0.0003178,5]
[391673213,1760724655616,-500.0,0.0003178,5]
[391673214,1760724655625,-500.0,0.0003178,5]
[391673215,1760724655635,-500.0,0.0003178,5]
[391673216,1760724655645,-500.0,0.0003178,5]
[391673217,1760724655654,-500.0,0.0003178,5]
[391673218,1760724655665,-500.0,0.0003178,5]
[391673219,1760724655675,-500.0,0.0003178,5]
[391673220,1760724655684,-500.0,0.0003178,5]
[391673221,1760724655693,-9395.89,0.0003178,5]
[391673222,1760724655703,-500.0,0.0003178,5]
[391673223,1760724655712,-500.0,0.0003178,2]
[391673224,1760724655722,-500.0,0.0003178,5]
[391673225,1760724655731,-500.0,0.0003178,5]
[391673226,1760724655740,-500.0,0.0003178,5]
[391673227,1760724655753,-500.0,0.0003178,5]
[391673228,1760724655771,-500.0,0.0003178,5]
[391673229,1760724655779,-500.0,0.0003178,5]
[391673230,1760724655789,-318.49,0.00031781,22]
[391673231,1760724655798,-282.78,0.00031798,2]
[391673232,1760724655807,-397.5,0.00031805,2]
[391673233,1760724655816,-760.0,0.00031808,2]
[391673234,1760724655825,-154.33034444,0.00031808,30]
[391673235,1760724655834,-271.956981,0.0003187,15]
[391673236,1760724655843,-155.530121,0.0003187,15]
[391673237,1760724655852,-25285.53,0.000319,7]
[391673238,1760724655862,-9000.0,0.00031914,6]
[391673239,1760724655871,-166.0,0.00031933,2]
[391673240,1760724655881,-210.01366292,0.00031933,2]
[391673241,1760724655890,-720.0,0.0003194,30]
[391673242,1760724655899,-355.31,0.00031945,30]
[391673243,1760724655910,-3500.0,0.0003196,5]
[391673244,1760724655923,-500.66290724,0.00031973,5]
[391673245,1760724655932,-19984.25860516,0.0003199,30]
[391673246,1760724655941,-400.0,0.00032,120]
[391673247,1760724655951,-1168.3516802,0.00032,2]
[391673248,1760724655961,-150883.03424956,0.00032,30]
[391673249,1760724655971,-160.0,0.00032,30]
[391673250,1760724655980,-402.69031254,0.00032,30]
[391673251,1760724655990,-154.33034444,0.00032,30]
[391673252,1760724656000,-500.0,0.00032054,5]
[391673253,1760724656009,-500.0,0.00032054,5]
[391673254,1760724656018,-1000.0,0.00032054,2]
[391673255,1760724656027,-307.97205573,0.00032054,5]
[391673256,1760724656037,-1383.67,0.00032054,5]
[391673257,1760724656046,-622.67,0.00032054,5]
[391673258,1760724656055,-1116.32,0.00032054,5]
[391673259,1760724656065,-500.0,0.00032054,5]
[391673260,1760724656074,-500.0,0.00032054,5]
[391673261,1760724656084,-500.0,0.00032054,5]
[391673262,1760724656093,-4876.64,0.00032054,5]
[391673263,1760724656103,-500.0,0.00032054,5]
[391673264,1760724656112,-500.0,0.00032054,5]
[391673265,1760724656121,-2483.49,0.00032054,5]
[391673266,1760724656131,-606.34,0.00032054,5]
[391673267,1760724656140,-500.0,0.00032054,5]
[391673268,1760724656150,-500.0,0.00032054,5]
[391673269,1760724656160,-500.0,0.00032054,5]
[391673270,1760724656170,-624.44,0.00032054,5]
[391673271,1760724656180,-500.0,0.00032054,5]
[391673272,1760724656189,-500.0,0.00032054,5]
[391673273,1760724656199,-500.0,0.00032054,5]
[391673274,1760724656208,-1826.15,0.00032054,2]
[391673275,1760724656219,-500.0,0.00032054,5]
[391673276,1760724656228,-500.0,0.00032054,5]
[391673277,1760724656238,-785.68,0.00032054,5]
[391673278,1760724656248,-500.0,0.00032054,5]
[391673279,1760724656257,-615.8013253,0.00032054,5]
[391673280,1760724656267,-500.0,0.00032054,5]
[391673281,1760724656276,-500.0,0.00032054,5]
[391673282,1760724656285,-895.98,0.00032054,5]
[391673283,1760724656295,-4958.33,0.00032054,5]
[391673284,1760724656304,-500.0,0.00032054,5]
[391673285,1760724656314,-500.0,0.00032054,2]
[391673286,1760724656323,-500.0,0.00032054,5]
[391673287,1760724656333,-500.0,0.00032054,5]
[391673288,1760724656342,-5210.72,0.00032054,5]
[391673289,1760724656351,-500.0,0.00032054,5]
[391673290,1760724656360,-518.86,0.00032054,5]
[391673291,1760724656369,-805.93,0.00032054,5]
[391673292,1760724656379,-1000.0,0.00032054,2]
[391673293,1760724656389,-500.0,0.00032054,5]
[391673294,1760724656398,-500.0,0.00032054,5]
[391673295,1760724656407,-500.0,0.00032054,5]
[391673296,1760724656419,-656.71,0.00032054,3]
[391673297,1760724656429,-529.54,0.00032054,5]
[391673298,1760724656438,-500.0,0.00032054,5]
[391673299,1760724656447,-678.35,0.00032054,5]
[391673300,1760724656457,-500.0,0.00032054,5]
[391673301,1760724656466,-545.0,0.00032054,5]
[391673302,1760724656475,-2386.99,0.00032054,5]
[391673303,1760724656484,-500.0,0.00032054,5]
[391673304,1760724656494,-500.0,0.00032054,5]
[391673305,1760724656503,-500.0,0.00032054,5]
[391673306,1760724656513,-500.0,0.00032054,5]
[391673307,1760724656522,-500.0,0.00032054,5]
[391673308,1760724656532,-5093.68,0.00032054,5]
[391673309,1760724656541,-647.06,0.00032054,5]
[391673310,1760724656550,-500.0,0.00032054,5]
[391673311,1760724656559,-500.0,0.00032054,5]
[391673312,1760724656568,-500.0,0.00032054,5]
[391673313,1760724656579,-500.0,0.00032054,5]
[391673314,1760724656588,-378.81101766,0.00032054,5]
[391673315,1760724656597,-500.0,0.00032054,5]
[391673316,1760724656606,-500.0,0.00032054,5]
[391673317,1760724656615,-500.0,0.00032054,7]
[391673318,1760724656625,-500.0,0.00032054,5]
[391673319,1760724656634,-500.0,0.00032054,5]
[391673320,1760724656644,-9395.89,0.00032054,5]
[391673321,1760724656653,-500.0,0.00032054,5]
[391673322,1760724656663,-500.0,0.00032054,2]
[391673323,1760724656673,-500.0,0.00032054,5]
[391673324,1760724656682,-500.0,0.00032054,5]
[391673325,1760724656692,-500.0,0.00032054,5]
[391673326,1760724656702,-500.0,0.00032054,5]
[391673327,1760724656711,-500.0,0.00032054,5]
[391673328,1760724656720,-500.0,0.00032054,5]
[391673329,1760724656731,-318.49,0.00032055,23]
[391673330,1760724656740,-1681.50792439,0.00032056,5]
[391673331,1760724656750,-450.0,0.00032116,5]
[391673332,1760724656759,-403.996349,0.00032116,5]
[391673333,1760724656769,-179.67658215,0.0003216,8]
[391673334,1760724656778,-154.33034444,0.00032164,30]
[391673335,1760724656787,-3826.07,0.000322,2]
[391673336,1760724656796,-4250.81,0.00032223,12]
[391673337,1760724656806,-484.42886317,0.00032229,4]
[391673338,1760724656815,-587.0,0.00032241,2]
[391673339,1760724656824,-256.0,0.00032241,3]
[391673340,1760724656834,-2351.0,0.00032242,3]
[391673341,1760724656843,-500.0,0.00032328,5]
[391673342,1760724656852,-500.0,0.00032328,5]
[391673343,1760724656861,-1000.0,0.00032328,2]
[391673344,1760724656871,-1383.67,0.00032328,5]
[391673345,1760724656880,-622.67,0.00032328,5]
[391673346,1760724656890,-1116.32,0.00032328,5]
[391673347,1760724656899,-500.0,0.00032328,5]
[391673348,1760724656908,-500.0,0.00032328,5]
[391673349,1760724656922,-4876.64,0.00032328,5]
[391673350,1760724656931,-500.0,0.00032328,5]
[391673351,1760724656939,-500.0,0.00032328,5]
[391673352,1760724656949,-2483.49,0.00032328,5]
[391673353,1760724656959,-606.34,0.00032328,5]
[391673354,1760724656968,-500.0,0.00032328,5]
[391673355,1760724656978,-500.0,0.00032328,5]
[391673356,1760724656990,-500.0,0.00032328,5]
[391673357,1760724657000,-624.44,0.00032328,5]
[391673358,1760724657009,-500.0,0.00032328,5]
[391673359,1760724657018,-500.0,0.00032328,5]
[391673360,1760724657028,-1826.15,0.00032328,2]
[391673361,1760724657038,-500.0,0.00032328,5]
[391673362,1760724657048,-500.0,0.00032328,5]
[391673363,1760724657057,-785.68,0.00032328,5]
[391673364,1760724657067,-500.0,0.00032328,5]
[391673365,1760724657076,-500.0,0.00032328,5]
[391673366,1760724657085,-500.0,0.00032328,5]
[391673367,1760724657094,-895.98,0.00032328,5]
[391673368,1760724657104,-4958.33,0.00032328,5]
[391673369,1760724657114,-500.0,0.00032328,5]
[391673370,1760724657124,-500.0,0.00032328,2]
[391673371,1760724657240,-500.0,0.00032328,5]
[391673372,1760724657251,-500.0,0.00032328,5]
[391673373,1760724657262,-5210.72,0.00032328,5]
[391673374,1760724657272,-500.0,0.00032328,5]
[391673375,1760724657282,-518.86,0.00032328,5]
[391673376,1760724657292,-805.93,0.00032328,5]
[391673377,1760724657302,-1000.0,0.00032328,2]
[391673378,1760724657311,-500.0,0.00032328,5]
[391673379,1760724657321,-500.0,0.00032328,5]
[391673380,1760724657331,-500.0,0.00032328,5]
[391673381,1760724657341,-656.71,0.00032328,3]
[391673382,1760724657352,-529.54,0.00032328,5]
[391673383,1760724657370,-500.0,0.00032328,5]
[391673384,1760724657383,-678.35,0.00032328,5]
[391673385,1760724657393,-500.0,0.00032328,5]
[391673386,1760724657403,-545.0,0.00032328,5]
[391673387,1760724657413,-2386.99,0.00032328,5]
[391673388,1760724657423,-500.0,0.00032328,5]
[391673389,1760724657433,-500.0,0.00032328,5]
[391673390,1760724657443,-500.0,0.00032328,5]
[391673391,1760724657457,-500.0,0.00032328,5]
[391673392,1760724657472,-500.0,0.00032328,5]
[391673393,1760724657483,-5093.68,0.00032328,5]
[391673394,1760724657494,-647.06,0.00032328,5]
[391673395,1760724657504,-500.0,0.00032328,5]
[391673396,1760724657514,-500.0,0.00032328,5]
[391673397,1760724657523,-500.0,0.00032328,5]
[391673398,1760724657533,-500.0,0.00032328,5]
[391673399,1760724657542,-500.0,0.00032328,5]
[391673400,1760724657552,-500.0,0.00032328,5]
[391673401,1760724657562,-500.0,0.00032328,5]
[391673402,1760724657573,-508.74921819,0.00032328,5]
[391673403,1760724657583,-9395.89,0.00032328,5]
[391673404,1760724657594,-500.0,0.00032328,5]
[391673405,1760724657605,-500.0,0.00032328,2]
[391673406,1760724657615,-500.0,0.00032328,5]
[391673407,1760724657626,-500.0,0.00032328,5]
[391673408,1760724657636,-446.8887513,0.00032328,5]
[391673409,1760724657646,-500.0,0.00032328,5]
[391673410,1760724657656,-500.0,0.00032328,5]
[391673411,1760724657667,-258.37076676,0.00032328,5]
[391673412,1760724657677,-318.49,0.00032329,24]
[391673413,1760724657687,-860.0,0.00032356,2]
[391673414,1760724657696,-154.33034444,0.00032356,30]
[391673415,1760724657706,-420.0,0.00032405,2]
[391673416,1760724657716,-166.0,0.00032481,2]
[391673417,1760724657725,-1000.0,0.000325,2]
[391673418,1760724657735,-2000.0,0.000325,2]
[391673419,1760724657744,-3000.0,0.000325,2]
[391673420,1760724657754,-4000.0,0.00032508,5]
[391673421,1760724657764,-600.0,0.00032513,2]
[391673422,1760724657773,-2351.0,0.00032523,3]
[391673423,1760724657783,-154.33034444,0.00032548,30]
[391673424,1760724657793,-2426.51,0.000326,2]
[391673425,1760724657803,-982.0,0.00032601,2]
[391673426,1760724657812,-2162.0,0.00032601,2]
[391673427,1760724657821,-631.0,0.00032601,2]
[391673428,1760724657831,-500.0,0.00032602,5]
[391673429,1760724657841,-500.0,0.00032602,5]
[391673430,1760724657850,-217.58003368,0.00032602,2]
[391673431,1760724657860,-1383.67,0.00032602,5]
[391673432,1760724657870,-622.67,0.00032602,5]
[391673433,1760724657880,-1116.32,0.00032602,5]
[391673434,1760724657890,-500.0,0.00032602,5]
[391673435,1760724657900,-544.87221642,0.00032602,5]
[391673436,1760724657910,-4876.64,0.00032602,5]
[391673437,1760724657923,-500.0,0.00032602,5]
[391673438,1760724657933,-500.0,0.00032602,5]
[391673439,1760724657942,-2483.49,0.00032602,5]
[391673440,1760724657952,-606.34,0.00032602,5]
[391673441,1760724657962,-500.0,0.00032602,5]
[391673442,1760724657972,-500.0,0.00032602,5]
[391673443,1760724657982,-500.0,0.00032602,5]
[391673444,1760724657993,-624.44,0.00032602,5]
[391673445,1760724658003,-500.0,0.00032602,5]
[391673446,1760724658012,-500.0,0.00032602,5]
[391673447,1760724658022,-1826.15,0.00032602,2]
[391673448,1760724658031,-500.0,0.00032602,5]
[391673449,1760724658042,-500.0,0.00032602,5]
[391673450,1760724658052,-785.68,0.00032602,5]
[391673451,1760724658061,-500.0,0.00032602,5]
[391673452,1760724658070,-500.0,0.00032602,5]
[391673453,1760724658080,-500.0,0.00032602,5]
[391673454,1760724658089,-895.98,0.00032602,5]
[391673455,1760724658099,-4958.33,0.00032602,5]
[391673456,1760724658111,-500.0,0.00032602,2]
[391673457,1760724658121,-500.0,0.00032602,5]
[391673458,1760724658131,-500.0,0.00032602,5]
[391673459,1760724658140,-5210.72,0.00032602,5]
[391673460,1760724658150,-500.0,0.00032602,5]
[391673461,1760724658159,-518.86,0.00032602,5]
[391673462,1760724658169,-805.93,0.00032602,5]
[391673463,1760724658179,-838.63150525,0.00032602,2]
[391673464,1760724658188,-500.0,0.00032602,5]
[391673465,1760724658197,-500.0,0.00032602,5]
[391673466,1760724658207,-602.38916736,0.00032602,5]
[391673467,1760724658217,-656.71,0.00032602,3]
[391673468,1760724658226,-529.54,0.00032602,5]
[391673469,1760724658236,-500.0,0.00032602,5]
[391673470,1760724658245,-678.35,0.00032602,5]
[391673471,1760724658254,-500.0,0.00032602,5]
[391673472,1760724658264,-545.0,0.00032602,5]
[391673473,1760724658273,-2386.99,0.00032602,5]
[391673474,1760724658283,-500.0,0.00032602,5]
[391673475,1760724658292,-500.0,0.00032602,5]
[391673476,1760724658302,-566.99881915,0.00032602,5]
[391673477,1760724658311,-500.0,0.00032602,5]
[391673478,1760724658320,-500.0,0.00032602,5]
[391673479,1760724658330,-5093.68,0.00032602,5]
[391673480,1760724658339,-647.06,0.00032602,5]
[391673481,1760724658349,-502.6625881,0.00032602,5]
[391673482,1760724658358,-500.0,0.00032602,5]
[391673483,1760724658367,-500.0,0.00032602,5]
[391673484,1760724658376,-500.0,0.00032602,5]
[391673485,1760724658385,-500.0,0.00032602,5]
[391673486,1760724658395,-500.0,0.00032602,5]
[391673487,1760724658406,-500.0,0.00032602,5]
[391673488,1760724658417,-9395.89,0.00032602,5]
[391673489,1760724658427,-500.0,0.00032602,5]
[391673490,1760724658436,-500.0,0.00032602,2]
[391673491,1760724658446,-500.0,0.00032602,5]
[391673492,1760724658455,-500.0,0.00032602,5]
[391673493,1760724658464,-500.0,0.00032602,5]
[391673494,1760724658474,-500.0,0.00032602,5]
[391673495,1760724658483,-318.49,0.00032603,25]
[391673496,1760724658492,-550.0,0.00032664,5]
[391673497,1760724658501,-1441.3664672,0.00032697,2]
[391673498,1760724658511,-271.956981,0.000327,10]
[391673499,1760724658521,-155.530121,0.000327,10]
[391673500,1760724658531,-423.56869761,0.00032705,2]